{"text_format":"1","workbook":"xlsx","n_sheets":4,"sheets":["Exame","PREENCHER","bd","backup"],"not_rendered":{"charts":0,"images":1,"macros":1,"external_links":0,"defined_names":3,"comments":0,"pivot_tables":0},"unopened":[],"bounds":{"document_bytes":16777216,"sheet_cells":100000,"rows_first":2000,"rows_last":500,"rows_between":2000,"halvings":0,"cell_chars":16384,"cell_head_chars":4096},"cells_cut":0,"cells_raw":0,"read":"whole","date_system":"1900"}

{"sheet":"Exame","index":0,"n_rows":41,"n_cols":16,"rows_kept":41,"cut":false,"hidden":false,"merged":[[41,0,41,15],[32,0,32,15],[11,2,11,6],[12,1,12,6],[33,0,35,15],[11,11,11,13],[13,0,15,15],[24,0,26,15],[11,8,11,10],[27,12,27,15],[36,12,36,15],[16,12,16,15],[28,6,28,7],[6,0,6,15],[8,10,8,13],[9,12,9,15],[10,9,10,13],[3,0,3,15],[4,0,4,15],[5,0,5,15],[9,3,9,6],[10,1,10,6],[8,4,8,7],[9,8,9,11],[8,8,8,9]]}
[]
[]
[]
["Clínica Veterinária Animed 24h"]
["Av. Cavalhada, 1957 – Cavalhada – Porto Alegre – RS"]
["Fone: (51) 3249-9592"]
["E-mail: exames.animed@gmail.com"]
[]
["Paciente:",null,null,null,{"$f":"PREENCHER!E5","v":0},null,null,null,"Porprietário:",null,{"$f":"PREENCHER!K7","v":0}]
["Espécie:",null,null,{"$f":"PREENCHER!E7","v":0},null,null,null,null,"Veterinário Requisitante:",null,null,null,{"$f":"PREENCHER!K9","v":0}]
["Raça:",{"$f":"PREENCHER!E9","v":0},null,null,null,null,null,null,"Data:",{"$f":"PREENCHER!K11","v":"2016-05-16"}]
["Idade:",null,{"$f":"PREENCHER!E11","v":0},null,null,null,null,null,"Amostra Analisada:",null,null,"Sangue"]
["Sexo:",{"$f":"PREENCHER!E13","v":0}]
["ERITROGRAMA"]
[]
[]
[null,null,null,null,null,null,null,null,null,null,null,null,"Valores de Referência"]
["Eritrócitos",null,null,null,null,null,null,{"$f":"PREENCHER!F17","v":0},"milhões/mm³",null,null,null,null,{"$f":"INDEX(bd!B2:B3,MATCH(D10,bd!A2:A3,0))","v":{"$error":"#N/A"}},"milhões/mm3"]
["Hemoglobina",null,null,null,null,null,null,{"$f":"PREENCHER!F19","v":0},"g/dl",null,null,null,null,{"$f":"INDEX(bd!C2:C3,MATCH(D10,bd!A2:A3,0))","v":{"$error":"#N/A"}},"g/dl"]
["Hematócrito",null,null,null,null,null,null,{"$f":"PREENCHER!F21","v":0},"%",null,null,null,null,{"$f":"INDEX(bd!D2:D74,MATCH(D10,bd!A2:A74,0))","v":{"$error":"#N/A"}},"%"]
["V.C.M",null,null,null,null,null,null,{"$f":"(H20/H18)*10","v":{"$error":"#DIV/0!"}},"u³",null,null,null,null,{"$f":"INDEX(bd!E2:E3,MATCH(D10,bd!A2:A3,0))","v":{"$error":"#N/A"}},"u³"]
["H.C.M",null,null,null,null,null,null,{"$f":"(H19/H18)*10","v":{"$error":"#DIV/0!"}},"uug",null,null,null,null,{"$f":"INDEX(bd!F2:F3,MATCH(D10,bd!A2:A3,0))","v":{"$error":"#N/A"}},"uug"]
["C.H.C.M",null,null,null,null,null,null,{"$f":"(H19/H20)*100","v":{"$error":"#DIV/0!"}},"%",null,null,null,null,{"$f":"INDEX(bd!G2:G3,MATCH(D10,bd!A2:A3,0))","v":{"$error":"#N/A"}},"g%"]
["Plaquetas",null,null,null,null,null,null,{"$f":"PREENCHER!F23*1000","v":0},"/mm³",null,null,null,null,{"$f":"INDEX(bd!O2:O3,MATCH(D10,bd!A2:A3,0))","v":{"$error":"#N/A"}},"mil/mm³"]
["LEUCOGRAMA"]
[]
[]
[null,null,null,null,null,null,null,null,null,null,null,null,"Valores de Referência"]
["Leucócitos Totais",null,null,null,null,null,"%",null,{"$f":"PREENCHER!L17*1000","v":0},"/mm³",null,null,null,null,{"$f":"INDEX(bd!H2:H3,MATCH(D10,bd!A2:A3,0))","v":{"$error":"#N/A"}},"/mm³"]
["Eosinófilos",null,null,null,null,null,{"$f":"(I30/I29)*100","v":{"$error":"#DIV/0!"}},"%",{"$f":"PREENCHER!L19*1000","v":0},"/mm³",null,null,{"$f":"INDEX(bd!K2:K3,MATCH(D10,bd!A2:A3,0))","v":{"$error":"#N/A"}},"%",{"$f":"INDEX(bd!L2:L3,MATCH(D10,bd!A2:A3,0))","v":{"$error":"#N/A"}},"/mm³"]
["Linfócitos",null,null,null,null,null,{"$f":"(I31/I29)*100","v":{"$error":"#DIV/0!"}},"%",{"$f":"PREENCHER!L21*1000","v":0},"/mm³",null,null,{"$f":"INDEX(bd!I2:I3,MATCH(D10,bd!A2:A3,))","v":{"$error":"#N/A"}},"%",{"$f":"INDEX(bd!J2:J3,MATCH(D10,bd!A2:A3,0))","v":{"$error":"#N/A"}},"/mm³"]
["Outros",null,null,null,null,null,{"$f":"100-(G30+G31)","v":{"$error":"#DIV/0!"}},"%",{"$f":"I29-I30-I31","v":0},"/mm³",null,null,{"$f":"INDEX(bd!M2:M3,MATCH(D10,bd!A2:A3,))","v":{"$error":"#N/A"}},"%",{"$f":"INDEX(bd!N2:N3,MATCH(D10,bd!A2:A3,0))","v":{"$error":"#N/A"}},"/mm³"]
[]
["BIOQUÍMICA SANGUÍNEA"]
[]
[]
[null,null,null,null,null,null,null,null,null,null,null,null,"Valores de Referência"]
["ALT/GPT",null,null,null,null,null,null,null,{"$f":"PREENCHER!F25","v":0},"U/L",null,null,null,{"$f":"INDEX(bd!AA2:AA3,MATCH(D10,bd!Z2:Z3,0))","v":{"$error":"#N/A"}},"U/L"]
["Fosfatase Alcalina",null,null,null,null,null,null,null,{"$f":"PREENCHER!F27","v":0},"U/L",null,null,null,{"$f":"INDEX(bd!AB2:AB3,MATCH(D10,bd!Z2:Z3,0))","v":{"$error":"#N/A"}},"U/L"]
["Creatinina",null,null,null,null,null,null,null,{"$f":"PREENCHER!F29","v":0},"mmg/dL",null,null,null,{"$f":"INDEX(bd!AD2:AD3,MATCH(D10,bd!Z2:Z3,0))","v":{"$error":"#N/A"}},"mg/Dl"]
["Ureia",null,null,null,null,null,null,null,{"$f":"PREENCHER!F31","v":0},"mmg/dL",null,null,null,{"$f":"INDEX(bd!AC2:AC3,MATCH(D10,bd!Z2:Z3,0))","v":{"$error":"#N/A"}},"mg/Dl"]

{"sheet":"PREENCHER","index":1,"n_rows":31,"n_cols":11,"rows_kept":31,"cut":false,"hidden":false,"merged":[[1,1,1,14],[24,8,24,11],[26,8,26,11],[28,8,28,11],[4,4,4,6],[6,4,6,6],[8,4,8,6],[10,4,10,6],[12,4,12,6],[6,10,6,12],[8,10,8,12],[10,10,10,12]]}
[]
[null,"LABORATÓRIO ANIMED - CADASTRO NOVO EXAME"]
[]
[]
[null,null,"Paciente"]
[]
[null,null,"Espécie",null,null,null,null,null,"Proprietário"]
[]
[null,null,"Raça",null,null,null,null,null,"Veterinário"]
[]
[null,null,"Idade",null,null,null,null,null,"Data",null,{"$f":"TODAY()","v":"2016-05-16"}]
[]
[null,null,"Sexo"]
[]
[]
[]
[null,null,"Eritrócitos",null,null,null,null,null,"Leucócitos Totais"]
[]
[null,null,"Hemoglobina",null,null,null,null,null,"Eosinófilos"]
[]
[null,null,"Hematócrito",null,null,null,null,null,"Linfócitos"]
[]
[null,null,"Plaquetas"]
[]
[null,null,"ALT/GPT"]
[]
[null,null,"Fosfatase Alcalina"]
[]
[null,null,"Creatinina"]
[]
[null,null,"Uréia"]

{"sheet":"bd","index":2,"n_rows":43,"n_cols":30,"rows_kept":43,"cut":false,"hidden":false,"merged":[]}
["especie","hemacias","hemoglobina","hematócrito","V.C.M.","H.C.M.","C.H.C.M.","Leucócitos Totais","Linfócitos %","Linfócitos #","Eosinófilos %","Eosinófilos #","outros %","outros #","Plaquetas","Veterinários","s","especie","s","sexo","s","raças","s","idade","s",null,"ALT/GPT","FOSFATASE","UREIA","CREATI"]
["CANINO","5,5 a 8,5","12 a 18","37 a 55","60 a 77","22 a 25","32a 36","6.000 a 17.000","12 a 30","1.000 a 4.800","2 a 10","100 a 750","63 a 88","3.150 a 13.050","200.000 a 500.000","Dra Ana Paula",null,"Canino",null,"Macho",null,"SRD",null,"1 mês",null,"CANINO","7 a 80","20 a 80","10 a 60","0,5 a 2,0"]
["FELINO","5,0 a 10,0","8 a 15","30 a 45","39 a 55","22 a 25","30 a 36","5.500 a 19.500","20 a 55","1.500 a 7.000","2 a 12","100 a 750","55 a 79","2.550 a 13.550","200.000 a 600.000","Dr Antônio",null,"Felino",null,"Fêmea",null,"Basset Hound ",null,"2 meses",null,"FELINO","10 a 80","25 a 93","20 a 65","0,5 a 1,8"]
[null,null,null,null,null,null,null,null,null,null,null,null,null,null,null,"Dra Bruna",null,null,null,null,null,"Beagle ",null,"3 meses"]
[null,null,null,null,null,null,null,null,null,null,null,null,null,null,null,"Dra Cintia",null,null,null,null,null,"Bearded Collie ",null,"4 meses"]
[null,null,null,null,null,null,null,null,null,null,null,null,null,null,null,"Dra Débora",null,null,null,null,null,"Bichon Maltês ",null,"5 meses"]
[null,null,null,null,null,null,null,null,null,null,null,null,null,null,null,"Dr Jean",null,null,null,null,null,"Border Collie ",null,"6 meses"]
[null,null,null,null,null,null,null,null,null,null,null,null,null,null,null,"Dra Luciane",null,null,null,null,null,"Boston Terrier ",null,"7 meses"]
[null,null,null,null,null,null,null,null,null,null,null,null,null,null,null,"Outros",null,null,null,null,null,"Boxer ",null,"8 meses"]
[null,null,null,null,null,null,null,null,null,null,null,null,null,null,null,null,null,null,null,null,null,"Bull Terrier ",null,"9 meses"]
[null,null,null,null,null,null,null,null,null,null,null,null,null,null,null,null,null,null,null,null,null,"Bulldog ",null,"-"]
[null,null,null,null,null,null,null,null,null,null,null,null,null,null,null,null,null,null,null,null,null,"Bullmastiff",null,"10 meses"]
[null,null,null,null,null,null,null,null,null,null,null,null,null,null,null,null,null,null,null,null,null,"Chihuahua",null,"11 meses"]
[null,null,null,null,null,null,null,null,null,null,null,null,null,null,null,null,null,null,null,null,null,"Chow Chow ",null,"1 ano"]
[null,null,null,null,null,null,null,null,null,null,null,null,null,null,null,null,null,null,null,null,null,"Cocker Spaniel",null,"2 anos"]
[null,null,null,null,null,null,null,null,null,null,null,null,null,null,null,null,null,null,null,null,null,"Dálmata ",null,"3 anos"]
[null,null,null,null,null,null,null,null,null,null,null,null,null,null,null,null,null,null,null,null,null,"Dobermann ",null,"4 anos"]
[null,null,null,null,null,null,null,null,null,null,null,null,null,null,null,null,null,null,null,null,null,"Dogue Alemão",null,"5 anos"]
[null,null,null,null,null,null,null,null,null,null,null,null,null,null,null,null,null,null,null,null,null,"Dogue Argentino",null,"6 anos"]
[null,null,null,null,null,null,null,null,null,null,null,null,null,null,null,null,null,null,null,null,null,"Fox Terrier ",null,"7 anos"]
[null,null,null,null,null,null,null,null,null,null,null,null,null,null,null,null,null,null,null,null,null,"Foxhound",null,"8 anos"]
[null,null,null,null,null,null,null,null,null,null,null,null,null,null,null,null,null,null,null,null,null,"Galgo",null,"9 anos"]
[null,null,null,null,null,null,null,null,null,null,null,null,null,null,null,null,null,null,null,null,null,"Golden Retriever ",null,"10 anos"]
[null,null,null,null,null,null,null,null,null,null,null,null,null,null,null,null,null,null,null,null,null,"Husky Siberiano",null,"11 anos"]
[null,null,null,null,null,null,null,null,null,null,null,null,null,null,null,null,null,null,null,null,null,"Labrador Retriever",null,"12 anos"]
[null,null,null,null,null,null,null,null,null,null,null,null,null,null,null,null,null,null,null,null,null,"Malamute-do-Alasca",null,"13 anos"]
[null,null,null,null,null,null,null,null,null,null,null,null,null,null,null,null,null,null,null,null,null,"Mastin",null,"14 anos"]
[null,null,null,null,null,null,null,null,null,null,null,null,null,null,null,null,null,null,null,null,null,"Pastor Alemão",null,"15 anos"]
[null,null,null,null,null,null,null,null,null,null,null,null,null,null,null,null,null,null,null,null,null,"Pastor Belga ",null,"16 anos"]
[null,null,null,null,null,null,null,null,null,null,null,null,null,null,null,null,null,null,null,null,null,"Pequinês",null,"17 anos"]
[null,null,null,null,null,null,null,null,null,null,null,null,null,null,null,null,null,null,null,null,null,"Perdigueiro",null,"18 anos"]
[null,null,null,null,null,null,null,null,null,null,null,null,null,null,null,null,null,null,null,null,null,"Pitbull ",null,"19 anos"]
[null,null,null,null,null,null,null,null,null,null,null,null,null,null,null,null,null,null,null,null,null,"Pointer ",null,"20 anos"]
[null,null,null,null,null,null,null,null,null,null,null,null,null,null,null,null,null,null,null,null,null,"Pug"]
[null,null,null,null,null,null,null,null,null,null,null,null,null,null,null,null,null,null,null,null,null,"Rottweiler "]
[null,null,null,null,null,null,null,null,null,null,null,null,null,null,null,null,null,null,null,null,null,"Samoiedo "]
[null,null,null,null,null,null,null,null,null,null,null,null,null,null,null,null,null,null,null,null,null,"São Bernardo "]
[null,null,null,null,null,null,null,null,null,null,null,null,null,null,null,null,null,null,null,null,null,"Shar-Pei "]
[null,null,null,null,null,null,null,null,null,null,null,null,null,null,null,null,null,null,null,null,null,"Teckel"]
[null,null,null,null,null,null,null,null,null,null,null,null,null,null,null,null,null,null,null,null,null,"Terra-nova "]
[null,null,null,null,null,null,null,null,null,null,null,null,null,null,null,null,null,null,null,null,null,"Terrier Norfolk"]
[null,null,null,null,null,null,null,null,null,null,null,null,null,null,null,null,null,null,null,null,null,"West Highland T."]
[null,null,null,null,null,null,null,null,null,null,null,null,null,null,null,null,null,null,null,null,null,"Yorkshire Terrier"]

{"sheet":"backup","index":3,"n_rows":4,"n_cols":21,"rows_kept":4,"cut":false,"hidden":false,"merged":[]}
["codigo","pacientes","especie","raça","idade","sexo","proprietario","veterinario","data","eritrocitos","hemoglobina","hematocrito","plaquetas","alt/gpt","fosfatase","creatinina","ureia","leucocitos","eosinofilos","linfocitos","glicemia"]
[{"$f":"#REF!+1","v":{"$error":"#REF!"}},{"$f":"PREENCHER!E5","v":0},{"$f":"PREENCHER!E7","v":0},{"$f":"PREENCHER!E9","v":0},{"$f":"PREENCHER!E11","v":0},{"$f":"PREENCHER!E13","v":0},{"$f":"PREENCHER!K7","v":0},{"$f":"PREENCHER!K9","v":0},{"$f":"PREENCHER!K11","v":"2016-05-16"},{"$f":"PREENCHER!F17","v":0},{"$f":"PREENCHER!F19","v":0},{"$f":"PREENCHER!F21","v":0},{"$f":"PREENCHER!F23","v":0},{"$f":"PREENCHER!F25","v":0},{"$f":"PREENCHER!F27","v":0},{"$f":"PREENCHER!F29","v":0},{"$f":"PREENCHER!F31","v":0},{"$f":"PREENCHER!L17","v":0},{"$f":"PREENCHER!L19","v":0},{"$f":"PREENCHER!L21","v":0}]
[2,"PASTORINHO","Felino","SRD","1 ano","Macho"," CELSO","Dra Ana Paula","2016-05-11",8.93,11.1,33.200000000000003,149000,0,0,0,0,"10.7",200,1100]
[1,"Mimosa","Felino","SRD","10 anos","Fêmea","Magda","Dr Jean Fernandes","2016-05-11",6.77,9.3000000000000007,29.2,74,0,0,0,0,0.8,0.4,0.3]